bitfinex-derivatives/quotes_BTCF0:USTF0_20251115
["timestamp","ask_amount","ask_price","bid_price","bid_amount"]
[1763177060918,0.17085566,96705.0,96704.0,0.40547516]
[1763177062222,0.16985566,96705.0,96704.0,0.40547516]
[1763177062427,0.17085566,96705.0,96704.0,0.40547516]
[1763177063032,0.15755566,96705.0,96704.0,0.40547516]
[1763177063329,0.001,96705.0,96704.0,0.41585516]
[1763177063718,0.02311,96705.0,96704.0,0.41585516]
[1763177063925,0.04657,96705.0,96704.0,0.41585516]
[1763177064525,0.04657,96705.0,96704.0,0.40547516]
[1763177064726,0.04657,96705.0,96704.0,0.37917516]
[1763177066934,0.04557,96705.0,96704.0,0.37917516]
[1763177067134,0.04657,96705.0,96704.0,0.37917516]
[1763177068031,0.04657,96705.0,96704.0,0.35547516]
[1763177068240,0.04657,96705.0,96695.0,1.72e-06]
[1763177068241,0.05793,96696.0,96695.0,1.72e-06]
[1763177068429,0.41873,96696.0,96695.0,1.72e-06]
[1763177068629,0.5267,96696.0,96695.0,1.72e-06]
[1763177069332,0.5277,96696.0,96695.0,1.72e-06]
[1763177069925,0.5267,96696.0,96695.0,1.72e-06]
[1763177070130,0.5277,96696.0,96695.0,1.72e-06]
[1763177071032,0.0443,96683.0,96682.0,0.3608]
[1763177071234,0.0443,96673.0,96672.0,0.05478985]
[1763177071426,0.04277,96657.0,96656.0,8.066e-05]
[1763177071631,0.42605324,96657.0,96656.0,0.05757066]
[1763177071830,0.51901706,96657.0,96656.0,0.06774828]
[1763177072034,0.54145985,96657.0,96656.0,0.05757066]
[1763177072430,0.51901706,96657.0,96656.0,0.06805941]
[1763177072935,0.51901706,96657.0,96656.0,0.05757066]
[1763177073138,0.52001706,96657.0,96656.0,0.05757066]
[1763177074129,0.52001706,96657.0,96656.0,8.066e-05]
[1763177075542,0.52001706,96657.0,96656.0,0.04443066]
[1763177077740,0.3618,96657.0,96656.0,0.04443066]
[1763177079447,0.3608,96657.0,96656.0,0.04443066]
[1763177082739,0.3821,96657.0,96656.0,0.04443066]
[1763177083046,0.40357,96657.0,96656.0,0.04443066]
[1763177084134,0.0213,96657.0,96656.0,0.14796866]
[1763177084334,0.04277,96666.0,96665.0,0.04435]
[1763177084642,0.15283903,96666.0,96665.0,0.04435]
[1763177085144,0.04277,96661.0,96660.0,0.05968803]
[1763177087237,0.04377,96661.0,96660.0,0.05968803]
[1763177089037,0.04377,96661.0,96660.0,0.00219803]
[1763177089346,0.16093883,96661.0,96660.0,0.00219803]
[1763177090341,0.16093883,96661.0,96660.0,0.04654803]
[1763177091049,0.15993883,96661.0,96660.0,0.04654803]
[1763177091246,0.04377,96661.0,96660.0,0.04654803]
[1763177091842,0.04277,96661.0,96660.0,0.04654803]
[1763177092043,0.04377,96661.0,96660.0,0.04654803]
[1763177094849,0.04277,96661.0,96660.0,0.04654803]
[1763177095044,0.04377,96661.0,96660.0,0.04654803]
[1763177095442,0.001,96661.0,96660.0,0.04654803]
[1763177096449,0.08268623,96670.0,96669.0,0.04435]
[1763177096647,0.00015488,96670.0,96669.0,0.04435]
[1763177097747,0.02145488,96670.0,96669.0,0.04435]
[1763177099351,0.04292488,96670.0,96669.0,0.04435]
[1763177101049,0.04289,96660.0,96659.0,0.04545]
[1763177102559,0.12542135,96669.0,96668.0,0.04545]
[1763177102761,0.04289,96669.0,96668.0,0.04545]
[1763177103060,0.16002074,96669.0,96668.0,0.04545]
[1763177103652,0.16002074,96669.0,96668.0,0.02277]
[1763177104261,0.16002074,96669.0,96664.0,0.01369]
[1763177104262,0.04289,96665.0,96664.0,0.03646]
[1763177104558,0.04289,96665.0,96664.0,0.05914]
[1763177104559,0.15713322,96665.0,96664.0,0.05914]
[1763177105656,0.15813322,96665.0,96664.0,0.05914]
[1763177106553,0.001,96665.0,96664.0,0.05914]
[1763177107055,0.38237488,96670.0,96669.0,0.04545]
[1763177107251,0.36095488,96670.0,96669.0,0.04545]
[1763177108162,0.38415364,96670.0,96669.0,0.04545]
[1763177109562,0.42704364,96670.0,96669.0,0.04545]
[1763177110459,0.04251,96665.0,96664.0,0.05919]
[1763177110664,0.06570876,96665.0,96664.0,0.02277]
[1763177111165,0.06570876,96665.0,96664.0,0.05869]
[1763177113066,0.04362,96691.0,96690.0,0.04462]
[1763177113263,0.02253,96691.0,96690.0,0.15031963]
[1763177113769,0.01316,96704.0,96703.0,0.1481077]
[1763177113770,0.05678,96704.0,96703.0,0.1481077]
[1763177113963,0.05678,96704.0,96703.0,0.5089077]
[1763177116064,0.01316,96740.0,96715.0,0.1480948]
[1763177116364,0.09569135,96740.0,96715.0,0.5088948]
[1763177116556,0.01316,96730.0,96715.0,0.5088948]
[1763177117564,0.09569135,96730.0,96715.0,0.40542]
[1763177117765,0.006,96716.0,96715.0,0.40542]
[1763177122265,0.006,96716.0,96715.0,0.48512]
[1763177122464,0.11616792,96760.0,96744.0,0.0292]
[1763177122465,0.3608,96749.0,96744.0,0.0292]
[1763177122665,0.04362,96749.0,96748.0,0.0292]
[1763177122866,0.16304584,96749.0,96748.0,0.0292]
[1763177123675,0.04462,96749.0,96748.0,0.0292]
[1763177123969,0.04462,96749.0,96748.0,0.03943242]
[1763177125262,0.04362,96749.0,96748.0,0.03943242]
[1763177127174,0.04362,96738.0,96737.0,0.01054309]
[1763177127871,0.04362,96738.0,96737.0,0.00015507]
[1763177128266,0.04362,96738.0,96737.0,0.01064178]
[1763177128767,0.04362,96738.0,96737.0,0.00015507]
[1763177131274,0.15201684,96738.0,96737.0,0.00015507]
[1763177133674,0.15201684,96738.0,96737.0,0.02935507]
[1763177134769,0.15201684,96738.0,96737.0,0.00015507]
[1763177134969,0.01316,96740.0,96739.0,0.0292]
[1763177135168,0.05695,96750.0,96749.0,0.0292]
[1763177136771,0.01316,96760.0,96755.0,0.0292]
[1763177137171,0.3608,96780.0,96755.0,0.0292]
[1763177137378,0.53345092,96780.0,96755.0,0.0292]
[1763177137575,0.3608,96772.0,96755.0,0.0292]
[1763177139278,0.3608,96781.0,96755.0,0.0292]
[1763177140078,0.01334,96786.0,96755.0,0.0292]
[1763177141179,0.17265092,96780.0,96755.0,0.0292]
[1763177141382,0.01334,96786.0,96755.0,0.0292]
[1763177141570,0.3608,96779.0,96755.0,0.0292]
[1763177143078,0.02154836,96766.0,96765.0,0.1326213]
[1763177143281,0.04404836,96766.0,96765.0,0.4934213]
[1763177144285,0.00025836,96766.0,96765.0,0.4934213]
[1763177147980,0.40459,96791.0,96790.0,0.0292]
[1763177148180,0.42739436,96791.0,96790.0,0.00219803]
[1763177148383,0.5369274,96791.0,96790.0,0.00219803]
[1763177148778,0.5369274,96791.0,96790.0,0.01242315]
[1763177149481,0.42739436,96791.0,96790.0,0.02702315]
[1763177149687,0.40459,96791.0,96790.0,0.02702315]
[1763177150381,0.42738448,96791.0,96790.0,0.02702315]
[1763177151274,0.40459,96791.0,96790.0,0.02702315]
[1763177151881,0.40459,96791.0,96790.0,0.04162315]
[1763177152388,0.40459,96791.0,96790.0,0.02702315]
[1763177152979,0.40459,96791.0,96790.0,0.13041775]
[1763177153484,0.04379,96791.0,96790.0,0.01242315]
[1763177154382,0.04379,96791.0,96790.0,0.01022512]
[1763177154582,0.04379,96782.0,96781.0,0.00015499]
[1763177155784,0.04379,96782.0,96781.0,0.0103903]
[1763177159792,0.06658262,96782.0,96781.0,0.0103903]
[1763177161496,0.18100883,96782.0,96781.0,0.0103903]
[1763177164487,0.06658262,96782.0,96781.0,0.0552103]
[1763177164986,0.06658262,96782.0,96781.0,0.0103903]
[1763177165697,0.04429,96766.0,96757.0,0.0797]
[1763177165887,0.04429,96766.0,96757.0,0.40562]
[1763177165888,0.04429,96758.0,96757.0,0.40562]
[1763177166489,0.04429,96758.0,96757.0,0.51963477]
[1763177166688,0.04429,96758.0,96757.0,0.41620487]
[1763177168003,0.04429,96758.0,96757.0,0.39369487]
[1763177169892,0.04429,96758.0,96757.0,0.37138487]
[1763177171485,0.04429,96758.0,96748.0,0.00015499]
[1763177171486,0.15756546,96758.0,96748.0,0.00015499]
[1763177171695,0.04295,96749.0,96748.0,0.00015499]
[1763177173700,0.05571,96736.0,96735.0,0.81291642]
[1763177174699,0.04411,96736.0,96735.0,0.86710353]
[1763177176091,0.00219501,96740.0,96739.0,0.044]
[1763177176297,0.00015499,96745.0,96744.0,0.05658]
[1763177177510,0.02281499,96745.0,96744.0,0.05658]
[1763177177800,0.00015499,96745.0,96744.0,0.05658]
[1763177178001,0.3608,96774.0,96744.0,0.05658]
[1763177178207,0.05809,96768.0,96767.0,0.044]
[1763177178600,0.16981284,96768.0,96767.0,0.044]
[1763177178802,0.16981284,96768.0,96754.0,0.3608]
[1763177179005,0.04411,96761.0,96760.0,0.00073568]
[1763177179308,0.04411,96761.0,96754.0,0.3608]
[1763177179309,0.04411,96755.0,96754.0,0.3608]
[1763177179810,0.16352517,96755.0,96754.0,0.3608]
[1763177180205,0.04411,96752.0,96751.0,0.00015499]
[1763177181604,0.04411,96752.0,96751.0,0.02117499]
[1763177181809,0.04411,96752.0,96751.0,0.04415499]
[1763177182603,0.15254766,96752.0,96751.0,0.00015499]
[1763177182803,0.16652766,96752.0,96751.0,0.00015499]
[1763177184700,0.04411,96737.0,96736.0,0.0797]
[1763177184901,0.04411,96736.0,96735.0,0.01018711]
[1763177185107,0.04630501,96740.0,96739.0,0.044]
[1763177185314,0.16451877,96740.0,96739.0,0.044]
[1763177185508,0.04630501,96740.0,96739.0,0.044]
[1763177185810,0.16451877,96740.0,96739.0,0.044]
[1763177186708,0.04630501,96740.0,96739.0,0.044]
[1763177187915,0.05726,96736.0,96735.0,0.031612]
[1763177188413,0.05726,96736.0,96735.0,0.052802]
[1763177188414,0.04466,96736.0,96735.0,0.052802]
[1763177190216,0.04466,96736.0,96735.0,0.010562]
[1763177190411,0.04466,96733.0,96732.0,0.3608]
[1763177190817,0.04466,96733.0,96730.0,0.00089067]
[1763177190818,0.04466,96731.0,96730.0,0.00089067]
[1763177191008,0.04466,96731.0,96730.0,4.99e-06]
[1763177191212,0.04466,96727.0,96726.0,0.0003713]
[1763177191413,0.00219501,96730.0,96725.0,0.0102878]
[1763177191414,0.04466,96726.0,96725.0,0.0102878]
[1763177191728,0.04466,96726.0,96703.0,0.3608]
[1763177191729,0.04466,96711.0,96710.0,0.04297568]
[1763177191926,0.04466,96711.0,96710.0,0.0533351]
[1763177192426,0.04474779,96711.0,96710.0,0.0533351]
[1763177192722,8.779e-05,96711.0,96710.0,0.0533351]
[1763177193120,0.00015508,96720.0,96719.0,0.04224]
[1763177193428,0.00235009,96720.0,96719.0,0.5065105]
[1763177194819,0.04701009,96720.0,96719.0,0.40304]
[1763177195018,0.05961009,96720.0,96719.0,0.38185]
[1763177195425,0.05961009,96720.0,96719.0,0.3608]
[1763177196530,0.04466,96711.0,96710.0,0.01035942]
[1763177196726,0.04466,96711.0,96710.0,0.00073568]
[1763177197031,0.15910385,96711.0,96710.0,0.01096753]
[1763177197427,0.15910385,96711.0,96710.0,0.00073568]
[1763177197734,0.04466,96704.0,96701.0,0.00015508]
[1763177198028,0.04466,96704.0,96703.0,0.41364773]
[1763177198533,0.04466,96718.0,96717.0,0.02119]
[1763177198829,0.04466,96718.0,96717.0,0.04224]
[1763177199027,0.04466,96718.0,96717.0,0.02105]
[1763177199332,0.04466,96712.0,96711.0,0.40304]
[1763177199830,0.11364708,96719.0,96718.0,0.1457116]
[1763177200033,0.00235009,96720.0,96719.0,0.04224]
[1763177200225,0.00015508,96720.0,96719.0,0.40304]
[1763177201223,0.3608,96734.0,96733.0,0.1456956]
[1763177202633,0.04466,96737.0,96736.0,0.1456921]
[1763177204225,0.00219501,96740.0,96739.0,0.04224]
[1763177204426,0.04685501,96740.0,96739.0,0.40304]
[1763177204628,0.17136114,96740.0,96739.0,0.04224]
[1763177204823,0.17136114,96740.0,96739.0,0.02105]
[1763177206333,0.17136114,96740.0,96739.0,0.04224]
[1763177206831,0.04685501,96740.0,96739.0,0.04224]
[1763177208023,0.04685501,96740.0,96739.0,0.02105]
[1763177208530,0.04466,96731.0,96730.0,0.38185]
[1763177208832,0.04466,96731.0,96730.0,0.38258568]
[1763177209628,0.04466,96731.0,96730.0,0.00073568]
[1763177209828,0.0126,96732.0,96725.0,0.0797]
[1763177209829,0.04466,96726.0,96725.0,0.0797]
[1763177211128,0.04466,96726.0,96725.0,0.10075]
[1763177212139,0.04466,96726.0,96725.0,0.12194]
[1763177213138,0.04466,96726.0,96725.0,0.04224]
[1763177213333,0.00219501,96730.0,96720.0,0.36153568]
[1763177213540,0.04466,96725.0,96720.0,0.36153568]
[1763177213843,0.15845979,96725.0,96720.0,0.36153568]
[1763177214535,0.15845979,96725.0,96711.0,0.0797]
[1763177215637,0.15845979,96725.0,96712.0,0.1034779]
[1763177216135,0.15845979,96725.0,96724.0,0.02120508]
[1763177216340,0.15845979,96725.0,96724.0,0.04239508]
[1763177216538,0.15845979,96725.0,96724.0,0.00015508]
[1763177221029,0.15845979,96725.0,96724.0,0.02202508]
[1763177221235,0.15845979,96725.0,96724.0,0.04462508]
[1763177222243,0.15845979,96725.0,96724.0,0.00015508]
[1763177222942,0.15845979,96725.0,96724.0,0.02202508]
[1763177223342,0.15845979,96725.0,96724.0,0.00015508]
[1763177228235,0.3608,96730.0,96729.0,0.1034598]
[1763177228440,0.36299501,96730.0,96729.0,0.1479298]
[1763177228945,0.36299501,96730.0,96729.0,0.04447]
[1763177229144,0.36299501,96730.0,96729.0,0.1479298]
[1763177230940,0.00219501,96730.0,96729.0,0.20286668]
[1763177232048,0.00219501,96730.0,96729.0,0.26022784]
[1763177232552,0.00219501,96730.0,96729.0,0.20529096]
[1763177233054,0.12811686,96740.0,96739.0,0.04325]
[1763177233239,0.04787501,96740.0,96739.0,0.04325]
[1763177235539,0.00219501,96740.0,96739.0,0.04325]
[1763177236050,0.17747372,96750.0,96742.0,0.04325]
[1763177236051,0.09503686,96750.0,96742.0,0.04325]
[1763177236240,0.00219501,96750.0,96742.0,0.04325]
[1763177236653,0.00219501,96750.0,96742.0,0.09820085]
[1763177237243,0.00219501,96750.0,96742.0,0.04325]
[1763177238247,0.02251508,96743.0,96742.0,0.04325]
[1763177239150,0.04583508,96743.0,96742.0,0.04325]
[1763177239345,0.04568,96741.0,96740.0,0.00073568]
[1763177240147,0.15990003,96741.0,96740.0,0.00073568]
[1763177241755,0.04568,96738.0,96737.0,0.3608]
[1763177242653,0.01379,96736.0,96734.0,0.1254038]
[1763177242853,0.04787501,96740.0,96739.0,0.04325]
[1763177243047,0.00015508,96743.0,96742.0,0.04325]
[1763177243654,0.02251508,96743.0,96742.0,0.04325]
[1763177243852,0.04583508,96743.0,96742.0,0.04325]
[1763177245053,0.00015508,96743.0,96742.0,0.04325]
[1763177248247,0.04459,96760.0,96759.0,0.04467]
[1763177248451,0.04678501,96760.0,96759.0,0.04467]
[1763177249261,0.04459,96756.0,96753.0,0.3608]
[1763177249449,0.01398501,96760.0,96750.0,0.00015508]
[1763177249450,0.04459,96751.0,96750.0,0.00089076]
[1763177249760,0.15544439,96751.0,96750.0,0.00089076]
[1763177251755,0.15544439,96751.0,96750.0,0.02266076]
[1763177252264,0.15544439,96751.0,96750.0,0.04556076]
[1763177252954,0.15544439,96751.0,96750.0,0.00089076]
[1763177253163,0.15544439,96751.0,96750.0,0.04556076]
[1763177254261,0.04459,96751.0,96750.0,0.04556076]
[1763177256261,0.04459,96751.0,96750.0,0.14899806]
[1763177256765,0.04459,96751.0,96750.0,0.04556076]
[1763177261164,0.40539,96751.0,96750.0,0.00089076]
[1763177261366,0.40539,96751.0,96750.0,0.00015508]
[1763177261662,0.04459,96737.0,96735.0,0.05495085]
[1763177261869,0.01289,96736.0,96734.0,0.02177]
[1763177262067,0.04459,96735.0,96734.0,0.04467]
[1763177263365,0.04459,96735.0,96734.0,0.1481245]
[1763177264072,0.04459,96735.0,96734.0,0.5089245]
[1763177264259,0.04459,96735.0,96734.0,0.56387535]
[1763177264466,0.04459,96735.0,96734.0,0.40547]
[1763177265269,0.04474508,96744.0,96743.0,0.04467]
[1763177265570,0.05763508,96744.0,96743.0,0.04467]
[1763177266072,0.00015508,96744.0,96743.0,0.04467]
[1763177266268,0.00015508,96744.0,96743.0,0.1481148]
[1763177266471,0.00015508,96744.0,96743.0,0.20306565]
[1763177267967,0.02178,96754.0,96753.0,0.04467]
[1763177268168,0.04459,96754.0,96753.0,0.04467]
[1763177270766,0.04459,96754.0,96753.0,0.1481041]
[1763177270971,0.00015454,96763.0,96762.0,0.1034245]
[1763177271171,0.00015454,96763.0,96762.0,0.1480945]
[1763177271572,0.15926303,96790.0,96765.0,0.04467]
[1763177271770,0.05748,96784.0,96783.0,0.04467]
[1763177272075,0.04459,96784.0,96783.0,0.04467]
[1763177273881,0.04459,96781.0,96780.0,0.02250568]
[1763177274176,0.40539,96791.0,96790.0,0.02177]
[1763177274372,0.04459,96781.0,96780.0,0.01208524]
[1763177274571,0.04459,96781.0,96780.0,0.00073568]
[1763177275079,0.04459,96781.0,96780.0,0.02250568]
[1763177275375,0.04459,96781.0,96780.0,0.03424594]
[1763177276080,0.10982156,96790.0,96780.0,0.03424594]
[1763177276081,0.3608,96800.0,96795.0,0.05858]
[1763177276274,0.02678,96796.0,96795.0,0.05858]
[1763177276474,0.04959,96796.0,96795.0,0.04467]
[1763177277880,0.0448,96792.0,96791.0,0.40479]
[1763177279473,0.0448,96792.0,96791.0,0.04399]
[1763177280575,0.005,96796.0,96795.0,0.05752]
[1763177281087,0.0263,96796.0,96795.0,0.05752]
[1763177282184,0.005,96796.0,96795.0,0.04838]
[1763177282981,0.10982156,96820.0,96795.0,0.04838]
[1763177282982,0.01387,96849.0,96805.0,0.1481786]
[1763177283182,0.10982156,96830.0,96805.0,0.1481786]
[1763177283585,0.05721,96822.0,96821.0,0.0448]
[1763177283782,0.04432,96822.0,96821.0,0.0448]
[1763177283978,0.05819,96822.0,96821.0,0.0448]
[1763177285082,0.48449156,96840.0,96830.0,0.0448]
[1763177285083,0.3608,96831.0,96830.0,0.0448]
[1763177285290,0.40512,96831.0,96830.0,0.04553568]
[1763177285490,0.51423237,96831.0,96830.0,0.04553568]
[1763177285785,0.52810237,96831.0,96830.0,0.04553568]
[1763177286182,0.40512,96831.0,96830.0,0.04553568]
[1763177286383,0.3608,96831.0,96830.0,0.04553568]
[1763177286586,0.0263,96836.0,96835.0,0.0448]
[1763177287184,0.005,96836.0,96835.0,0.0448]
[1763177289080,0.04932,96836.0,96835.0,0.0448]
[1763177289282,0.04432,96831.0,96830.0,0.00073568]
[1763177289479,0.11440151,96836.0,96816.0,0.3608]
[1763177289480,0.04432,96822.0,96816.0,0.3608]
[1763177289676,0.04432,96822.0,96820.0,0.00073568]
[1763177289881,0.16229989,96822.0,96808.0,0.3608]
[1763177291191,0.16229989,96822.0,96820.0,0.00073568]
[1763177291488,0.16229989,96822.0,96810.0,0.17232922]
[1763177292497,0.16229989,96822.0,96808.0,0.3608]
[1763177292690,0.04975,96836.0,96835.0,0.04467]
[1763177292892,0.04475,96831.0,96830.0,0.04540568]
[1763177293084,0.16175225,96831.0,96830.0,0.04540568]
[1763177293286,0.04475,96831.0,96830.0,0.04540568]
[1763177293985,0.02323,96831.0,96830.0,0.04540568]
[1763177294194,0.001,96831.0,96830.0,0.05829568]
[1763177294584,0.02323,96831.0,96830.0,0.05829568]
[1763177294890,0.02323,96831.0,96830.0,0.04540568]
[1763177295092,0.04575,96831.0,96830.0,0.04540568]
[1763177296692,0.005,96836.0,96835.0,0.1480166]
[1763177299299,0.01298,96870.0,96845.0,0.148006]
[1763177299496,0.01298,96860.0,96845.0,0.508806]
[1763177299692,0.04500814,96846.0,96845.0,0.40547]
[1763177301191,0.04500814,96846.0,96845.0,0.3608]
[1763177301496,0.04500814,96846.0,96840.0,0.00219803]
[1763177301497,0.04475,96841.0,96840.0,0.02534803]
[1763177301698,0.04475,96841.0,96840.0,0.04686803]
[1763177301899,0.00025814,96846.0,96840.0,0.04977803]
[1763177302092,0.00025814,96846.0,96845.0,0.1480059]
[1763177302298,0.05773,96870.0,96850.0,0.01263]
[1763177302500,0.04475,96861.0,96860.0,0.04686803]
[1763177302798,0.15818036,96861.0,96860.0,0.04686803]
[1763177302998,0.15818036,96861.0,96860.0,0.00219803]
[1763177303796,0.02223,96831.0,96830.0,0.40547]
[1763177303997,0.02223,96831.0,96830.0,0.40766803]
[1763177304403,0.02223,96831.0,96830.0,0.41922343]
[1763177304597,0.01298,96840.0,96830.0,0.41922343]
[1763177304800,0.04475,96835.0,96834.0,0.148017]
[1763177305100,0.10929244,96839.0,96838.0,0.04467]
[1763177305296,0.00015432,96845.0,96844.0,0.05201]
[1763177307097,0.05773,96844.0,96843.0,0.3608]
[1763177307297,0.05773,96844.0,96843.0,0.38395]
[1763177307690,0.04365,96841.0,96840.0,0.00219803]
[1763177308094,0.04365,96835.0,96834.0,0.3608]
[1763177308302,0.04365,96835.0,96834.0,0.38299]
[1763177308691,0.04365,96835.0,96834.0,0.3608]
[1763177308896,0.04365,96831.0,96830.0,0.00219803]
[1763177309096,0.04365,96831.0,96815.0,0.3608]
[1763177309291,0.04365,96826.0,96820.0,0.00219803]
[1763177309696,0.15855367,96826.0,96820.0,0.00219803]
[1763177312005,0.04365,96813.0,96810.0,0.01154791]
[1763177312204,0.04365,96813.0,96812.0,0.04488266]
[1763177312906,0.0438049,96822.0,96821.0,0.04479]
[1763177313099,0.0438049,96822.0,96821.0,0.5089516]
[1763177313100,0.0001549,96822.0,96821.0,0.5089516]
[1763177314304,0.38201,96858.0,96847.0,0.0226]
[1763177314501,0.04365,96851.0,96850.0,0.02438803]
[1763177315303,0.04365,96851.0,96850.0,0.04698803]
[1763177316307,0.00015432,96860.0,96859.0,0.148111]
[1763177316507,0.00015432,96860.0,96859.0,0.508911]
[1763177317899,0.00015432,96860.0,96859.0,0.40559]
[1763177318207,0.00015432,96860.0,96859.0,0.508911]
[1763177319302,0.00015432,96860.0,96859.0,0.40559]
[1763177319498,0.04365,96847.0,96846.0,0.38299]
[1763177319802,0.04365,96847.0,96846.0,0.3608]
[1763177322203,0.15319106,96847.0,96846.0,0.3608]
[1763177322399,0.04365,96842.0,96837.0,0.3608]
[1763177322604,0.04365,96842.0,96840.0,0.00219803]
[1763177322805,0.15366986,96842.0,96840.0,0.00219803]
[1763177323807,0.51446986,96842.0,96840.0,0.00219803]
[1763177324907,0.51446986,96842.0,96841.0,0.0449449]
[1763177325101,0.01321,96844.0,96842.0,0.1033391]
[1763177325303,0.04365,96845.0,96844.0,0.04479]
[1763177326408,0.04365,96842.0,96841.0,0.0001549]
[1763177326605,0.04365,96842.0,96841.0,0.0223449]
[1763177326806,0.00015432,96860.0,96859.0,0.04479]
[1763177327113,0.04380432,96860.0,96859.0,0.04479]
[1763177327509,0.04380432,96860.0,96859.0,0.40559]
[1763177327707,0.00015432,96860.0,96859.0,0.40559]
[1763177330816,0.04380432,96860.0,96859.0,0.40559]
[1763177333616,0.04380432,96860.0,96859.0,0.3608]
[1763177334118,0.15659031,96860.0,96859.0,0.3608]
[1763177335212,0.04365,96849.0,96848.0,0.40559]
[1763177338131,0.04552,96842.0,96841.0,0.0001549]
[1763177338727,0.04552,96841.0,96840.0,0.3259549]
[1763177338927,0.04552,96820.0,96819.0,0.40502]
[1763177339222,0.01081,96830.0,96820.0,0.00219803]
[1763177339628,0.11171882,96829.0,96820.0,0.00219803]
[1763177340334,0.15723882,96829.0,96828.0,0.04422]
[1763177340532,0.0001549,96834.0,96833.0,0.05748]
[1763177345329,0.04552,96831.0,96830.0,0.00219803]
[1763177346437,0.15795747,96831.0,96830.0,0.00219803]
[1763177351732,0.15795747,96831.0,96830.0,0.04715803]
[1763177352527,0.05558,96820.0,96819.0,0.3608]
[1763177352728,0.1526732,96820.0,96801.0,0.05487599]
[1763177352936,0.3608,96816.0,96800.0,0.01369]
[1763177353128,0.3608,96816.0,96814.0,0.04491]
[1763177353129,0.0225029,96815.0,96814.0,0.04491]
[1763177353328,0.3608,96816.0,96815.0,0.04491]
[1763177353733,0.47846427,96816.0,96815.0,0.04491]
[1763177353934,0.3608,96816.0,96815.0,0.04491]
[1763177354341,0.47012865,96816.0,96815.0,0.04491]
[1763177357343,0.47012865,96816.0,96815.0,0.02162]
[1763177357648,0.47012865,96816.0,96810.0,0.01588803]
[1763177357943,0.47012865,96816.0,96810.0,0.01369]
[1763177358242,0.47012865,96816.0,96810.0,0.01588803]
[1763177358637,0.47012865,96816.0,96810.0,0.01369]
[1763177359039,0.47012865,96816.0,96806.0,0.00041315]
[1763177359237,0.3608,96807.0,96790.0,0.01369]
[1763177359437,0.3608,96791.0,96790.0,0.01369]
[1763177359742,0.4739437,96791.0,96790.0,0.01369]
[1763177360143,0.47401752,96791.0,96790.0,0.01369]
[1763177360345,0.47401752,96791.0,96781.0,0.0001549]
[1763177360642,0.3608,96782.0,96781.0,0.0001549]
[1763177361032,0.3608,96782.0,96766.0,0.00025836]
[1763177361033,0.47901321,96782.0,96766.0,0.00025836]
[1763177361239,0.3608,96768.0,96766.0,0.00025836]
[1763177361440,0.36089054,96768.0,96766.0,0.00025836]
[1763177361744,0.47910375,96768.0,96766.0,0.00025836]
[1763177362343,0.36089054,96768.0,96767.0,0.0586]
[1763177363145,9.054e-05,96768.0,96767.0,0.0586]
[1763177363344,5.4e-07,96768.0,96767.0,0.0586]
[1763177365044,0.00015499,96777.0,96776.0,0.04491]
[1763177369048,0.00015499,96777.0,96766.0,0.00025836]
[1763177369251,0.00015499,96777.0,96735.0,0.00465186]
[1763177369252,0.10332001,96760.0,96735.0,0.00465186]
[1763177369458,0.7216,96748.0,96735.0,0.00465186]
[1763177369647,0.3608,96736.0,96735.0,0.00465186]
[1763177370046,0.47854023,96736.0,96735.0,0.00465186]
[1763177370454,0.47865317,96736.0,96735.0,0.00465186]
[1763177372160,0.47865317,96736.0,96735.0,0.04839186]
[1763177372346,0.36091294,96736.0,96735.0,0.04839186]
[1763177372545,0.10285996,96745.0,96735.0,0.04839186]
[1763177372546,0.00015499,96745.0,96744.0,0.04374]
[1763177375555,0.3608,96756.0,96755.0,0.04374]
[1763177379451,0.47299911,96756.0,96750.0,0.00219803]
[1763177380459,0.47299911,96756.0,96755.0,0.02254]
[1763177380650,0.47299911,96756.0,96755.0,0.04374]
[1763177380958,0.3608,96764.0,96759.0,0.01382]
[1763177381253,0.3608,96764.0,96763.0,0.04374]
[1763177381254,0.47658819,96764.0,96763.0,0.04374]
[1763177382352,0.47658819,96764.0,96760.0,0.00219803]
[1763177382859,0.47658819,96764.0,96750.0,0.00261138]
[1763177383156,0.3608,96754.0,96750.0,0.00261138]
[1763177383354,0.3608,96754.0,96750.0,0.00219803]
[1763177383659,0.11691912,96753.0,96752.0,0.04374]
[1763177385461,0.11691912,96753.0,96750.0,0.00219803]
[1763177385655,0.11691912,96753.0,96740.0,0.00261138]
[1763177385954,0.3608,96752.0,96751.0,0.04374]
[1763177386357,0.47608536,96752.0,96751.0,0.04374]
[1763177388160,0.49865043,96752.0,96751.0,0.04374]
[1763177390155,0.49865043,96752.0,96751.0,0.02254]
[1763177390954,0.49865043,96752.0,96750.0,0.00219803]
[1763177391262,0.47608536,96752.0,96751.0,0.02254]
[1763177391459,0.49865875,96752.0,96750.0,0.00219803]
[1763177391760,0.02257339,96751.0,96750.0,0.00219803]
[1763177392164,0.14243027,96751.0,96750.0,0.00219803]
[1763177392553,0.14243027,96751.0,96740.0,0.00041335]
[1763177392753,0.14243027,96751.0,96740.0,0.00219803]
[1763177392754,0.02257339,96750.0,96740.0,0.00219803]
[1763177392959,0.11985688,96751.0,96740.0,0.00219803]
[1763177393261,0.11275954,96749.0,96740.0,0.00261138]
[1763177393452,0.11275954,96751.0,96740.0,0.00261138]
[1763177393655,0.11275954,96748.0,96740.0,0.00041335]
[1763177393856,0.3608,96741.0,96740.0,0.00041335]
[1763177394061,0.38337836,96741.0,96740.0,0.00041335]
[1763177394258,0.50232243,96741.0,96733.0,0.01382]
[1763177394463,0.3608,96736.0,96724.0,0.05537406]
[1763177394661,0.38337836,96736.0,96724.0,0.05537406]
[1763177394863,0.50232243,96736.0,96726.0,0.00036252]
[1763177395365,0.50232243,96736.0,96735.0,1.86e-06]
[1763177396363,0.50232243,96736.0,96735.0,0.00100186]
[1763177396566,0.50232243,96736.0,96726.0,0.00036252]
[1763177396865,0.3608,96727.0,96726.0,0.00036252]
[1763177397163,0.50315894,96727.0,96726.0,0.00036252]
[1763177399064,0.50315894,96727.0,96726.0,0.04330252]
[1763177399257,0.50317655,96727.0,96726.0,0.04330252]
[1763177399457,0.50317655,96727.0,96726.0,0.00036252]
[1763177399657,0.50317655,96727.0,96724.0,0.05537406]
[1763177399862,0.02259597,96726.0,96724.0,0.02073658]
[1763177400064,0.02259597,96725.0,96724.0,0.02073658]